lending/lending_fUSD_20250406
["ID","MTS","AMOUNT","RATE_DAILY","PERIOD"]
[357289647,1743982913463,-1190.98,0.0001854,2]
[357289648,1743982913498,-326.57404861,0.0001961,2]
[357289649,1743982913534,-250.0,0.0001971,2]
[357289650,1743982913569,-300.0,0.00019809,2]
[357289651,1743982913602,-86301.50567704,0.0001981,2]
[357289652,1743982913635,-340.46133964,0.00019873,2]
[357289653,1743982913668,-500.0,0.00019873,2]
[357289654,1743982913700,-161.24021374,0.00019873,2]
[357289655,1743982913733,-409.72425842,0.00019873,2]
[357289656,1743982913769,-167.45854486,0.000199,2]
[357289657,1743982913802,-167.65703154,0.000199,2]
[357289658,1743982913836,-172.84997045,0.000199,2]
[357289659,1743982913869,-7008.2037592,0.000199,2]
[357289660,1743982913904,-5418.6485,0.000199,2]
[357289661,1743982913944,-2435.3627287,0.000199,2]
[357289662,1743982913977,-2890.0,0.00019945,2]
[357289663,1743982914010,-502.19994835,0.00019973,2]
[357289664,1743982914043,-500.71468123,0.00019973,2]
[357289665,1743982914075,-500.0,0.00019973,2]
[357289666,1743982914113,-152.44881058,0.00019973,2]
[357289667,1743982914162,-525.62100968,0.00019973,2]
[357289668,1743982914209,-500.0,0.00019973,2]
[357289669,1743982914257,-501.42009875,0.00019973,2]
[357289670,1743982914300,-159.04586838,0.00019973,2]
[357289671,1743982914353,-512.44092776,0.00019973,2]
[357289672,1743982914401,-500.0,0.00019973,2]
[357289673,1743982914467,-500.0,0.00019973,2]
[357289674,1743982914519,-154.05179552,0.00019973,2]
[357289675,1743982914575,-276.58432752,0.0001999,2]
[357289676,1743982914621,-585.18144884,0.00019999,5]
[357289677,1743982914670,-1035.18144885,0.00019999,5]
[357289678,1743982914713,-1885054.44356234,0.0002,2]
[357289679,1743982935714,-1471.35356,0.00019512,2]
[357289680,1743982935749,-326.57404861,0.00019692,2]
[357289681,1743982935782,-326.57404861,0.00019773,2]
[357289682,1743982935815,-500.0,0.00019973,2]
[357289683,1743982935850,-500.0,0.00019973,2]
[357289684,1743982935883,-300.0,0.00019999,2]
[357289685,1743982935920,-215707.31949195,0.0002,2]
[357289686,1743982935956,-706.92122751,0.0002,2]
[357289687,1743982935989,-1972.10072497,0.0002,2]
[357289688,1743982936027,-1477.94648345,0.0002,2]
[357289689,1743982936060,-4289.33988537,0.0002,2]
[357289690,1743982936092,-32089.43880395,0.0002,2]
[357289691,1743982936124,-40332.43172558,0.0002,4]
[357289693,1743983237737,5139.93,0.00039457,30]
[357289714,1743983314985,173.68,0.00013699,2]
[357289715,1743983316815,413.93,0.00032932,120]
[357289720,1743983432147,-250.0,0.00019,2]
[357289721,1743983432158,-250.0,0.00019486,2]
[357289722,1743983432168,-429.09289014,0.00019973,2]
[357289723,1743983432180,-70.90710986,0.00019973,2]
[357289724,1743983432190,-593.33599145,0.0002,4]
[357289725,1743983432202,-401.7502562,0.0002,4]
[357289726,1743983432214,-4971.60612023,0.0002,4]
[357289727,1743983432234,-3400.62942593,0.0002,4]
[357289728,1743983432246,-872.98459677,0.0002,4]
[357289729,1743983432258,-44081.01194352,0.0002,4]
[357289730,1743983432270,-1569.56510515,0.0002,4]
[357289731,1743983432282,-400.04061336,0.0002,4]
[357289732,1743983432297,-258.493,0.0002,4]
[357289733,1743983432309,-521.61488064,0.0002,4]
[357289734,1743983432321,-2888.51819286,0.0002,4]
[357289735,1743983432333,-738.44822419,0.0002,4]
[357289736,1743983432344,-455.85,0.0002,4]
[357289737,1743983432418,-29636.73336418,0.0002,4]
[357289738,1743983432428,-26019.4128069,0.0002,4]
[357289740,1743983432438,-150.0,0.00020247,2]
[357289742,1743983432447,-23900.0,0.00020276,2]
[357289743,1743983432457,-888.79,0.00020523,2]
[357289744,1743983432466,-150.0,0.00020669,2]
[357289745,1743983432476,-500.0,0.0002077,2]
[357289746,1743983432486,-1190.98,0.00020804,2]
[357289747,1743983432495,-250.0,0.000209,2]
[357289748,1743983432505,-212.02,0.00020916,2]
[357289749,1743983432515,-1000.0,0.00020945,2]
[357289750,1743983432524,-160.08,0.00020945,2]
[357289751,1743983432534,-380.11257616,0.00020973,2]
[357289752,1743983432547,-500.0,0.00020973,2]
[357289753,1743983432557,-248.01544304,0.00020973,2]
[357289754,1743983432567,-500.0,0.00020973,2]
[357289755,1743983432576,-501.54245216,0.00020973,2]
[357289756,1743983432586,-500.0,0.00020973,2]
[357289757,1743983432595,-500.48992386,0.00020973,2]
[357289758,1743983432605,-501.2940903,0.00020973,2]
[357289759,1743983432617,-9823.2739479,0.00020999,2]
[357289760,1743983432626,-98845.41480932,0.00021,2]
[357289761,1743983432636,-300.0,0.00021,2]
[357289762,1743983432646,-6496.18942015,0.00021012,2]
[357289763,1743983432656,-184.47,0.00021112,2]
[357289764,1743983432665,-166.66,0.00021385,2]
[357289765,1743983432675,-651.82,0.00021437,2]
[357289766,1743983432686,-3952.41,0.00021536,2]
[357289767,1743983432696,-200.0,0.00021626,7]
[357289768,1743983432706,-367.86,0.00021737,2]
[357289769,1743983432715,-200.0,0.00021755,2]
[357289770,1743983432726,-37133.82,0.00021791,2]
[357289771,1743983432736,-530.21,0.00021814,2]
[357289772,1743983432746,-300.0,0.00021857,2]
[357289773,1743983432756,-1102.17,0.00021874,2]
[357289774,1743983432766,-389.42,0.00021895,2]
[357289775,1743983432775,-247.92,0.00021902,2]
[357289776,1743983432787,-150.0,0.00021917,2]
[357289777,1743983432796,-250.0,0.00021927,2]
[357289778,1743983432806,-202.99,0.00021931,2]
[357289779,1743983432816,-230.97,0.00021949,2]
[357289780,1743983432826,-250.0,0.0002197,2]
[357289781,1743983432835,-7240.0,0.00022004,2]
[357289782,1743983433072,-166.66,0.00022091,2]
[357289783,1743983433087,-168.89,0.00022183,2]
[357289784,1743983433098,-1189.98,0.00022512,2]
[357289785,1743983433108,-200.0,0.00022625,2]
[357289786,1743983433123,-166.66,0.00022797,2]
[357289787,1743983433133,-350.0,0.00023,2]
[357289788,1743983433143,-1190.98,0.00023068,2]
[357289789,1743983433153,-1852.42,0.00023126,2]
[357289790,1743983433165,-230.97,0.00023168,2]
[357289791,1743983433174,-4527.09366746,0.000232,2]
[357289792,1743983433185,-150.0,0.00023287,2]
[357289793,1743983433195,-166.66,0.00023503,2]
[357289794,1743983433205,-1000.0,0.00023563,2]
[357289795,1743983433216,-396.41,0.00023836,2]
[357289796,1743983433225,-170.4,0.00023883,2]
[357289797,1743983433236,-225.0,0.00023905,2]
[357289798,1743983433246,-168.89,0.00024013,2]
[357289799,1743983433257,-166.66,0.00024209,2]
[357289800,1743983433267,-230.97,0.00024387,2]
[357289801,1743983433277,-350.0,0.00024548,2]
[357289802,1743983433299,-6496.18942014,0.00024633,2]
[357289803,1743983433310,-247.92,0.0002464,2]
[357289804,1743983433321,-150.0,0.00024657,2]
[357289805,1743983433332,-1000.0,0.00024658,2]
[357289806,1743983433343,-505.38579987,0.00024773,2]
[357289807,1743983433354,-250.0,0.00024817,2]
[357289808,1743983433366,-166.66,0.00024915,2]
[357289809,1743983433377,-400.0,0.00025,2]
[357289810,1743983433388,-225.0,0.00025275,2]
[357289811,1743983433398,-318.21830189,0.000253,2]
[357289812,1743983433409,-500.0,0.000253,2]
[357289813,1743983433420,-1190.98,0.00025332,2]
[357289814,1743983433430,-502.98286032,0.00025452,2]
[357289815,1743983433440,-512.93117536,0.00025452,2]
[357289816,1743983433450,-230.97,0.00025607,2]
[357289817,1743983433461,-168.89,0.00025844,2]
[357289818,1743983433471,-150.0,0.00026027,2]
[357289819,1743983433482,-1000.0,0.00026181,2]
[357289820,1743983433492,-1000.0,0.00026452,2]
[357289821,1743983433503,-505.9650105,0.00026452,2]
[357289822,1743983433513,-341.70869542,0.00026452,2]
[357289823,1743983433523,-230.97,0.00026826,2]
[357289824,1743983433534,-5528.54139152,0.0002683,2]
[357289825,1743983433543,-157.78,0.00026849,2]
[357289826,1743983433554,-174.01,0.00026849,2]
[357289827,1743983433564,-2495.22236785,0.00026989,2]
[357289828,1743983433574,-450.0,0.00027,2]
[357289829,1743983433584,-500.0,0.00027089,2]
[357289830,1743983433594,-150.0,0.00027397,2]
[357289831,1743983433604,-1359.7,0.00027397,2]
[357289832,1743983433615,-497.5,0.00027397,2]
[357289833,1743983433626,-162.09995034,0.00027397,5]
[357289834,1743983433636,-355.62494099,0.000274,2]
[357289835,1743983433646,-500.0,0.00027457,5]
[357289836,1743983433656,-500.0,0.00027457,5]
[357289837,1743983433666,-1190.98,0.00027596,2]
[357289838,1743983433677,-2333.0,0.00027612,5]
[357289839,1743983433687,-230.97,0.00028045,2]
[357289840,1743983433698,-8977.54,0.00028203,2]
[357289841,1743983433708,-150.99,0.00028203,2]
[357289842,1743983433718,-745.94,0.00028203,2]
[357289843,1743983433728,-2762.9,0.00028203,2]
[357289844,1743983433738,-999.99,0.00028203,2]
[357289845,1743983433747,-331.88,0.00028203,2]
[357289846,1743983433758,-150.99,0.00028203,2]
[357289847,1743983433768,-9524.2,0.00028203,2]
[357289848,1743983433778,-10701.22,0.00028203,10]
[357289849,1743983433787,-189.52,0.00028203,2]
[357289850,1743983433797,-222.22,0.00028203,2]
[357289851,1743983433807,-6496.18942014,0.00028253,2]
[357289852,1743983433816,-150.0,0.00028767,2]
[357289853,1743983433826,-1359.7,0.00028767,2]
[357289854,1743983433836,-1000.0,0.00028799,2]
[357289855,1743983433846,-172.84997041,0.00028873,2]
[357289856,1743983433856,-384.62507404,0.00029,6]
[357289857,1743983433867,-500.0,0.00029,2]
[357289858,1743983433877,-230.97,0.00029265,2]
[357289859,1743983433887,-405.0,0.00029616,2]
[357289860,1743983433898,-1190.98,0.0002986,2]
[357289861,1743983433908,-2495.22236778,0.00029946,2]
[357289862,1743983433918,-212.0,0.0003,2]
[357289863,1743983433928,-150.0,0.00030136,2]
[357289864,1743983433939,-1359.7,0.00030137,2]
[357289865,1743983433949,-230.97,0.00030484,2]
[357289866,1743983433959,-550.0,0.00031,2]
[357289867,1743983433969,-1000.0,0.00031417,2]
[357289868,1743983433983,-150.0,0.00031506,2]
[357289869,1743983433993,-1359.7,0.00031507,2]
[357289870,1743983434003,-1189.98,0.00031517,2]
[357289871,1743983434013,-230.97,0.00031704,2]
[357289872,1743983434024,-6496.18942014,0.00031874,2]
[357289873,1743983434034,-1190.98,0.00032124,2]
[357289874,1743983434043,-1486.492,0.00032367,32]
[357289875,1743983434053,-205.44953294,0.00032367,32]
[357289876,1743983434063,-371.10205849,0.00032568,5]
[357289877,1743983434075,-174.01,0.00032646,2]
[357289878,1743983434085,-150.0,0.00032876,2]
[357289879,1743983434095,-1359.7,0.00032877,2]
[357289880,1743983434105,-2495.22236778,0.00032902,2]
[357289881,1743983434114,-230.97,0.00032923,2]
[357289882,1743983434124,-1000.0,0.00032937,5]
[357289883,1743983434134,-1000.0,0.00032937,5]
[357289884,1743983434144,-3039.34995319,0.00033,2]
[357289885,1743983434154,-600.0,0.00033,2]
[357289886,1743983434164,-101574.0,0.000341,2]
[357289887,1743983434174,-150.0,0.00034246,2]
[357289888,1743983434184,-1190.98,0.00034387,2]
[357289889,1743983434195,-150.0,0.00034548,10]
[357289890,1743983434205,-162.66,0.00035,2]
[357289891,1743983434215,-650.0,0.00035,2]
[357289892,1743983434226,-5556.0,0.00035,3]
[357289893,1743983434236,-396.41,0.00035068,2]
[357289894,1743983434246,-9909.51755636,0.0003511,30]
[357289895,1743983434261,-2390.37141977,0.0003511,30]
[357289896,1743983434282,-283.46582527,0.0003511,30]
[357289897,1743983434293,-157.78,0.00035321,2]
[357289898,1743983434303,-181.66976473,0.00035495,2]
[357289899,1743983434316,-6314.51965541,0.00035495,2]
[357289900,1743983434326,-3278.51349628,0.000356,7]
[357289901,1743983434337,-151.0,0.000356,7]
[357289902,1743983434347,-151.0,0.000356,7]
[357289903,1743983434356,-151.0,0.000356,7]
[357289904,1743983434367,-151.0,0.000356,7]
[357289905,1743983434377,-151.0,0.000356,7]
[357289906,1743983434387,-151.0,0.00035616,7]
[357289907,1743983434398,-150.0,0.00035616,2]
[357289908,1743983434408,-153.738135,0.00035616,7]
[357289909,1743983434417,-151.0,0.00035616,7]
[357289910,1743983434427,-151.0,0.00035616,7]
[357289911,1743983434436,-151.0,0.00035616,7]
[357289912,1743983434446,-151.7,0.00035616,2]
[357289913,1743983434455,-2495.22236778,0.00035859,2]
[357289914,1743983434465,-151.3,0.0003589,2]
[357289915,1743983434476,-5556.0,0.000359,5]
[357289916,1743983434485,-1132.0,0.000362,2]
[357289917,1743983434495,-154.59,0.00036261,30]
[357289918,1743983434504,-198.94940819,0.00036471,5]
[357289919,1743983434514,-1190.98,0.00036651,2]
[357289920,1743983434524,-151.7,0.00036664,2]
[357289921,1743983434534,-150.0,0.00036986,2]
[357289922,1743983434543,-700.0,0.00037,2]
[357289923,1743983434553,-10000.0,0.000372,2]
[357289924,1743983434563,-413.93,0.0003741,120]
[357289925,1743983434573,-151.7,0.00037712,2]
[357289926,1743983434582,-172.84997041,0.00037845,2]
[357289927,1743983434591,-150.0,0.00038356,2]
[357289928,1743983434602,-365.88776394,0.000384,33]
[357289929,1743983434611,-174.01,0.00038443,2]
[357289930,1743983434622,-1096.54579052,0.00038457,10]
[357289931,1743983434632,-151.7,0.00038759,2]
[357289932,1743983434642,-2495.22236778,0.00038815,2]
[357289933,1743983434652,-1190.98,0.00038915,2]
[357289934,1743983434661,-1000.0,0.00039,7]
[357289935,1743983434672,-750.0,0.00039,2]
[357289936,1743983434682,-6496.18942014,0.00039115,2]
[357289937,1743983434691,-2356.711796,0.000393,29]
[357289938,1743983434700,-14395.8972601,0.0003939,3]
[357289939,1743983434710,-630.5603506,0.0003939,3]
[357289940,1743983434721,-939.57619722,0.000394,100]
[357289941,1743983434730,-395.25346446,0.00039435,2]
[357289942,1743983434741,-14562.69130905,0.00039435,2]
[357289943,1743983434751,-1942.15027669,0.00039435,2]
[357289944,1743983434761,-978.42394289,0.00039435,15]
[357289945,1743983434771,-1277.83904334,0.00039435,4]
[357289946,1743983434780,-706.34025553,0.00039435,7]
[357289947,1743983434790,-1507.74670341,0.00039435,4]
[357289948,1743983434799,-10000.0,0.00039435,2]
[357289949,1743983434812,-9786.83,0.00039457,30]
[357289950,1743983434821,-1285.0,0.00039467,2]
[357289951,1743983434831,-574.0,0.00039467,2]
[357289952,1743983434840,-2043.0,0.00039467,2]
[357289953,1743983434850,-1104.039,0.00039467,2]
[357289954,1743983434860,-908.0,0.00039467,2]
[357289955,1743983434871,-328.253,0.00039467,2]
[357289956,1743983434880,-790.0,0.00039467,2]
[357289957,1743983434890,-4139.0,0.00039467,2]
[357289958,1743983434900,-544.0,0.00039467,2]
[357289959,1743983434910,-150.0,0.00039467,2]
[357289960,1743983434920,-851.0,0.00039467,2]
[357289961,1743983434929,-151.0,0.00039467,2]
[357289962,1743983434939,-150.0,0.00039726,2]
[357289963,1743983434948,-600.0,0.000398,14]
[357289964,1743983434959,-151.7,0.00039807,2]
[357289965,1743983434969,-1120.87905108,0.000399,14]
[357289966,1743983435001,-79.12094892,0.000399,14]
[357289967,1743983435011,-313.92303194,0.0003998,3]
[357289968,1743983435022,-2353.59415557,0.0003998,3]
[357289972,1743983437759,-6462.58,0.0003998,3]
[357289975,1743983438095,-552.425,0.0003998,3]
[357289976,1743983438107,-5547.74016914,0.0003998,3]
[357289977,1743983438128,-250.0,0.00029479,2]
[357289978,1743983438137,-7706.43853657,0.0003998,3]
[357289979,1743983438148,-12299.5082939,0.0003998,3]
[357289980,1743983438160,-336.31656911,0.0003998,3]
[357289981,1743983438171,-1114.93636,0.0003998,3]
[357289982,1743983438183,-362.62095273,0.0003998,3]
[357289983,1743983438423,-5873.54060005,0.0003998,3]
[357289984,1743983438435,-374.107104,0.0003998,3]
[357289985,1743983438446,-1812.68142874,0.0003998,3]
[357289986,1743983438458,-6075.43336535,0.0003998,3]
[357289987,1743983438470,-17574.76394432,0.0003998,3]
[357289988,1743983438481,-2281.87364935,0.0003998,3]
[357289989,1743983438596,-44124.69492023,0.0003998,3]
[357289990,1743983438606,-3783.3621036,0.0003998,3]
[357289991,1743983438616,-115167.178081,0.0003999,3]
[357289992,1743983438628,-3152.801753,0.0003999,3]
[357289993,1743983438637,-151.3,0.0003999,2]
[357289994,1743983438647,-23897.24467309,0.0004,3]
[357289995,1743983438657,-188.0,0.0004,7]
[357289996,1743983438666,-3203.66703249,0.0004,10]
[357289997,1743983438675,-18226.90897359,0.0004,30]
[357289998,1743983438685,-30562.27089602,0.0004,30]
[357289999,1743983438698,-46597.62079608,0.0004,30]
[357290000,1743983438710,-2077.96966884,0.0004,30]
[357290001,1743983438722,-5480.89394461,0.0004,30]
[357290177,1743983440581,-1132.2175544,0.000274,2]
[357290179,1743983440591,-2671.37135942,0.0004,30]
[357290181,1743983440602,-21669.0,0.0004,30]
[357290184,1743983440618,-1560.49007799,0.0004,30]
[357290186,1743983440635,-61770.14936955,0.0004,30]
[357290188,1743983440644,-168.165058,0.0004,14]
[357290190,1743983440654,-151.0,0.0004,14]
[357290192,1743983440663,-151.0,0.0004,14]
[357290194,1743983440672,-151.0,0.0004,14]
[357290196,1743983440681,-151.0,0.0004,14]
[357290198,1743983440691,-151.0,0.0004,14]
[357290200,1743983440700,-190.224375,0.0004,14]
[357290202,1743983440709,-151.0,0.0004,14]
[357290204,1743983440719,-151.0,0.0004,14]
[357290206,1743983440728,-151.0,0.0004,14]
[357290207,1743983440738,-151.0,0.0004,14]
[357290209,1743983440747,-151.0,0.0004,14]
[357290210,1743983440756,-151.0,0.0004,14]
[357290211,1743983440766,-151.7,0.00040854,2]
[357290212,1743983440777,-155.43,0.00040914,2]
[357290213,1743983440787,-155.43,0.00040931,2]
[357290214,1743983440797,-155.43,0.00040948,2]
[357290215,1743983440806,-155.43,0.00040965,2]
[357290216,1743983440815,-14395.8972601,0.0004098,3]
[357290217,1743983440825,-630.5603506,0.0004098,3]
[357290218,1743983440836,-155.43,0.00040982,2]
[357290219,1743983440845,-155.43,0.00040999,2]
[357290220,1743983440856,-7491.39234563,0.00041,5]
[357290221,1743983440866,-800.0,0.00041,2]
[357290222,1743983440875,-155.43,0.00041016,2]
[357290223,1743983440884,-155.43,0.00041033,2]
[357290224,1743983440893,-155.43,0.0004105,2]
[357290225,1743983440903,-155.43,0.00041067,2]
[357290226,1743983440912,-155.43,0.00041084,2]
[357290227,1743983440922,-14395.8972601,0.00041086,3]
[357290228,1743983440931,-150.0,0.00041095,120]
[357290229,1743983440940,-500.0,0.00041096,31]
[357290230,1743983440950,-500.0,0.00041096,31]
[357290231,1743983440959,-500.0,0.00041096,31]
[357290232,1743983440969,-500.0,0.00041096,31]
[357290233,1743983440980,-500.0,0.00041096,31]
[357290234,1743983440990,-500.0,0.00041096,31]
[357290235,1743983440999,-155.43,0.00041101,2]
[357290236,1743983441008,-155.43,0.00041119,2]
[357290237,1743983441018,-1190.98,0.00041179,2]
[357290238,1743983441028,-2495.22236778,0.00041772,15]
[357290239,1743983441038,-413.93,0.00041888,120]
[357290240,1743983441047,-151.7,0.00041902,2]
[357290241,1743983441057,-630.5603506,0.00042022,3]
[357290242,1743983441067,-14395.8972601,0.00042447,3]
[357290243,1743983441077,-150.0,0.00042465,120]
[357290244,1743983441087,-1285.0,0.00042467,2]
[357290245,1743983441096,-574.0,0.00042467,2]
[357290246,1743983441105,-773.342,0.00042467,2]
[357290247,1743983441115,-908.0,0.00042467,2]
[357290248,1743983441124,-790.0,0.00042467,2]
[357290249,1743983441134,-4139.0,0.00042467,2]
[357290250,1743983441144,-544.0,0.00042467,2]
[357290251,1743983441154,-150.0,0.00042467,2]
[357290252,1743983441164,-851.0,0.00042467,2]
[357290253,1743983441174,-151.0,0.00042467,2]
[357290254,1743983441184,-151.0,0.00042467,14]
[357290255,1743983441193,-151.0,0.00042467,14]
[357290256,1743983441204,-242.232336,0.00042467,14]
[357290257,1743983441214,-1092.8648262,0.000425,60]
[357290258,1743983441223,-630.5603506,0.00042726,3]
[357290259,1743983441233,-6496.18942014,0.00042736,15]
[357290260,1743983441242,-151.0,0.0004279,14]
[357290261,1743983441252,-151.7,0.00042949,2]
[357290262,1743983441262,-513.24303803,0.00042955,10]
[357290263,1743983441272,-658.80855114,0.00042955,10]
[357290264,1743983441281,-14395.8972601,0.0004298,3]
[357290265,1743983441291,-696.04,0.00043,33]
[357290266,1743983441300,-696.04,0.00043,33]
[357290267,1743983441309,-696.04,0.00043,33]
[357290268,1743983441319,-696.04,0.00043,33]
[357290269,1743983441329,-696.04,0.00043,33]
[357290270,1743983441338,-696.04,0.00043,33]
[357290271,1743983441347,-696.04,0.00043,33]
[357290272,1743983441357,-696.04,0.00043,33]
[357290273,1743983441367,-696.04,0.00043,33]
[357290274,1743983441378,-696.04,0.00043,33]
[357290276,1743983441388,-696.04,0.00043,33]
[357290277,1743983441397,-696.04,0.00043,33]
[357290278,1743983441407,-850.0,0.00043,2]
[357290279,1743983441416,-150.0,0.00043224,2]
[357290280,1743983441426,-1190.98,0.00043443,2]
[357290281,1743983441436,-1052.41051704,0.000435,2]
[357290282,1743983441445,-157.78,0.00043793,2]
[357290283,1743983441454,-14395.8972601,0.00043835,3]
[357290284,1743983441464,-150.0,0.00043835,120]
[357290285,1743983441474,-151.0,0.00043845,14]
[357290286,1743983441483,-7661.121565,0.0004387,2]
[357290287,1743983441492,-16244.1732643,0.0004387,2]
[357290288,1743983441502,-2303.7,0.000439,14]
[357290289,1743983441511,-151.0,0.00043902,14]
[357290290,1743983441521,-151.0,0.00043902,14]
[357290291,1743983441531,-151.0,0.00043902,14]
[357290292,1743983441540,-151.0,0.00043902,14]
[357290293,1743983441550,-151.7,0.00043997,2]
[357290294,1743983441559,-229.64,0.00044239,2]
[357290295,1743983441569,-174.01,0.00044239,2]
[357290296,1743983441579,-2495.22236778,0.00044728,15]
[357290297,1743983441589,-171.91,0.00044971,2]
[357290298,1743983441598,-28791.7945202,0.0004498,3]
[357290299,1743983441607,-151.0,0.00045,120]
[357290300,1743983441617,-1000.0,0.00045,30]
[357290301,1743983441627,-5722.13547239,0.00045,30]
[357290302,1743983441637,-151.0,0.00045,120]
[357290303,1743983441646,-64455.40552979,0.00045,2]
[357290304,1743983441656,-58440.15569706,0.00045,2]
[357290305,1743983441666,-500.0,0.00045,120]
[357290306,1743983441675,-263.289397,0.00045,14]
[357290307,1743983441685,-151.0,0.00045,14]
[357290308,1743983441694,-151.0,0.00045,14]
[357290309,1743983441703,-151.0,0.00045,14]
[357290310,1743983441713,-151.0,0.00045,14]
[357290311,1743983441723,-1000.0,0.00045,120]
[357290312,1743983441734,-151.0,0.00045,14]
[357290313,1743983441743,-151.0,0.00045,14]
[357290314,1743983441752,-151.0,0.00045,14]
[357290315,1743983441762,-900.0,0.00045,2]
[357290316,1743983441771,-151.7,0.00045044,2]
[357290317,1743983441780,-1000.0,0.0004515,25]
[357290318,1743983441790,-198.33,0.00045216,120]
[357290319,1743983441799,-2303.7,0.000453,14]
[357290320,1743983441808,-574.0,0.00045467,2]
[357290321,1743983441818,-908.0,0.00045467,2]
[357290322,1743983441827,-790.0,0.00045467,2]
[357290323,1743983441836,-4139.0,0.00045467,2]
[357290324,1743983441845,-544.0,0.00045467,2]
[357290325,1743983441855,-851.0,0.00045467,2]
[357290326,1743983441864,-151.0,0.00045467,2]
[357290327,1743983441873,-1000.0,0.000455,30]
[357290328,1743983441885,-1190.98,0.00045707,2]
[357290329,1743983441894,-1000.0,0.000458,30]
[357290330,1743983441903,-1000.0,0.000459,30]
[357290331,1743983441913,-151.7,0.00046092,2]
[357290332,1743983441922,-396.41,0.00046301,2]
[357290333,1743983441931,-6496.18942014,0.00046357,15]
[357290334,1743983441941,-413.93,0.00046366,120]
[357290335,1743983441950,-200.0,0.00046575,60]
[357290336,1743983441960,-172.84997041,0.00046818,25]
[357290337,1743983441970,-695.4174,0.00046888,30]
[357290338,1743983441983,-1000.0,0.00047,30]
[357290339,1743983441993,-589.44772763,0.000471,7]
[357290340,1743983442003,-2303.7,0.000471,14]
[357290341,1743983442012,-2000.0,0.000471,2]
[357290342,1743983442022,-151.7,0.00047139,2]
[357290343,1743983442032,-1665.3824728,0.0004753,4]
[357290344,1743983442041,-2495.22236778,0.00047685,15]
[357290345,1743983442051,-1190.98,0.00047971,2]
[357290346,1743983442062,-2444.0,0.00048,120]
[357290347,1743983442071,-308.0,0.00048,120]
[357290348,1743983442081,-151.0,0.0004809,14]
[357290349,1743983442091,-151.7,0.00048187,2]
[357290350,1743983442099,-574.0,0.00048467,2]
[357290351,1743983442109,-908.0,0.00048467,2]
[357290352,1743983442118,-790.0,0.00048467,2]
[357290353,1743983442130,-1252.08,0.00048467,2]
[357290354,1743983442139,-544.0,0.00048467,2]
[357290355,1743983442151,-851.0,0.00048467,2]
[357290356,1743983442160,-151.0,0.00048467,2]
[357290357,1743983442169,-683.08,0.000485,2]
[357290358,1743983442179,-184.47,0.00048509,2]
[357290359,1743983442188,-151.3,0.00048757,2]
[357290360,1743983442197,-500.0,0.00048767,120]
[357290361,1743983442207,-500.0,0.00048767,120]
[357290362,1743983442216,-246.29369033,0.00048767,120]
[357290363,1743983442226,-500.0,0.00048767,120]
[357290364,1743983442235,-500.0,0.00048767,120]
[357290365,1743983442244,-500.0,0.00048767,120]
[357290366,1743983442254,-500.0,0.00048767,120]
[357290367,1743983442263,-500.0,0.00048767,120]
[357290368,1743983442272,-500.0,0.00048767,120]
[357290369,1743983442282,-500.0,0.0004877,3]
[357290370,1743983442291,-3307.81853474,0.000488,120]